Workbook

Sheet Parameters
A1: Bulk Dividend Analyzer
A2: http://investexcel.net | J2: Samir Khan
J3: simulationconsultant@gmail.com
A4: Parameters | H4: FALSE
A5: Start Date | B5: 2000 | H5: TRUE | J5: Please link to http://investexcel.net if you like this spreadsheet :)
A6: End Date | B6: 2014 | H6: TRUE
B7: c:\temp\
J10: Failed for these Tickers | L10: Success for these Tickers
A11: Enter Tickers Below | L11: XOM
A12: XOM | L12: MCD
A13: MCD | L13: BP
A14: BP | L14: KO
A15: KO | L15: KKR
A16: KKR

Sheet XOM
A1: Historical Dividends for XOM
A2: Date | B2: Dividends | D2: Year | E2: Total Dividends | F2: Growth Rate | G2: Start Date | H2: 2000-02-09
A3: 2000-02-09 | B3: 0.22 | D3: 2000 | E3: 0.88 | G3: End Date | H3: 2014-11-07
A4: 2000-05-11 | B4: 0.22 | D4: 2001 | E4: 0.91 | F4: =(E4 - E3) / E3 -> 0.03409090909 | G4: Days in Range | H4: 5385
A5: 2000-08-10 | B5: 0.22 | D5: 2002 | E5: 0.92 | F5: 0.01098901099 | G5: Years in Range | H5: 15
A6: 2000-11-09 | B6: 0.22 | D6: 2003 | E6: 0.98 | F6: 0.0652173913 | G6: Start Dividend | H6: 0.88
A7: 2001-02-07 | B7: 0.22 | D7: 2004 | E7: 1.06 | F7: 0.08163265306 | G7: End Dividend | H7: 2.7
A8: 2001-05-10 | B8: 0.22 | D8: 2005 | E8: 1.14 | F8: 0.07547169811 | G8: CAGR | H8: 0.07760287021
A9: 2001-06-18 | B9: 0.01 | D9: 2006 | E9: 1.28 | F9: 0.1228070175
A10: 2001-08-09 | B10: 0.23 | D10: 2007 | E10: 1.37 | F10: 0.0703125
A11: 2001-11-07 | B11: 0.23 | D11: 2008 | E11: 1.55 | F11: 0.1313868613
A12: 2002-02-07 | B12: 0.23 | D12: 2009 | E12: 1.66 | F12: 0.07096774194
A13: 2002-05-09 | B13: 0.23 | D13: 2010 | E13: 1.74 | F13: 0.04819277108
A14: 2002-08-09 | B14: 0.23 | D14: 2011 | E14: 1.85 | F14: 0.0632183908
A15: 2002-11-07 | B15: 0.23 | D15: 2012 | E15: 2.18 | F15: 0.1783783784
A16: 2003-02-06 | B16: 0.23 | D16: 2013 | E16: 2.46 | F16: 0.128440367
A17: 2003-05-09 | B17: 0.25 | D17: 2014 | E17: 2.7 | F17: 0.09756097561
A18: 2003-08-11 | B18: 0.25
A19: 2003-11-07 | B19: 0.25 | E19: Average Growth | F19: =AVERAGE(F4:F17) -> 0.08419047616
A20: 2004-02-09 | B20: 0.25
A21: 2004-05-11 | B21: 0.27
A22: 2004-08-11 | B22: 0.27
A23: 2004-11-09 | B23: 0.27
A24: 2005-02-08 | B24: 0.27
A25: 2005-05-11 | B25: 0.29
A26: 2005-08-10 | B26: 0.29
A27: 2005-11-08 | B27: 0.29
A28: 2006-02-08 | B28: 0.32
A29: 2006-05-10 | B29: 0.32
A30: 2006-08-10 | B30: 0.32
A31: 2006-11-09 | B31: 0.32
A32: 2007-02-07 | B32: 0.32
A33: 2007-05-10 | B33: 0.35
A34: 2007-08-09 | B34: 0.35
A35: 2007-11-07 | B35: 0.35
A36: 2008-02-07 | B36: 0.35
A37: 2008-05-09 | B37: 0.4
A38: 2008-08-11 | B38: 0.4
A39: 2008-11-07 | B39: 0.4
A40: 2009-02-06 | B40: 0.4
A41: 2009-05-11 | B41: 0.42
A42: 2009-08-11 | B42: 0.42
A43: 2009-11-09 | B43: 0.42
A44: 2010-02-08 | B44: 0.42
A45: 2010-05-11 | B45: 0.44
A46: 2010-08-11 | B46: 0.44
A47: 2010-11-09 | B47: 0.44
A48: 2011-02-08 | B48: 0.44
A49: 2011-05-11 | B49: 0.47
A50: 2011-08-10 | B50: 0.47
A51: 2011-11-08 | B51: 0.47
A52: 2012-02-08 | B52: 0.47
A53: 2012-05-10 | B53: 0.57
A54: 2012-08-09 | B54: 0.57
A55: 2012-11-07 | B55: 0.57
A56: 2013-02-07 | B56: 0.57
A57: 2013-05-09 | B57: 0.63
A58: 2013-08-09 | B58: 0.63
A59: 2013-11-07 | B59: 0.63
A60: 2014-02-06 | B60: 0.63
A61: 2014-05-09 | B61: 0.69
A62: 2014-08-11 | B62: 0.69
A63: 2014-11-07 | B63: 0.69

Sheet MCD
A1: Historical Dividends for MCD
A2: Date | B2: Dividends | D2: Year | E2: Total Dividends | F2: Growth Rate | G2: Start Date | H2: 2000-11-13
A3: 2000-11-13 | B3: 0.215 | D3: 2000 | E3: 0.215 | G3: End Date | H3: 2014-11-26
A4: 2001-11-13 | B4: 0.225 | D4: 2001 | E4: 0.225 | F4: =(E4 - E3) / E3 -> 0.04651162791 | G4: Days in Range | H4: 5126
A5: 2002-11-13 | B5: 0.235 | D5: 2002 | E5: 0.235 | F5: 0.04444444444 | G5: Years in Range | H5: 14
A6: 2003-11-12 | B6: 0.4 | D6: 2003 | E6: 0.4 | F6: 0.7021276596 | G6: Start Dividend | H6: 0.215
A7: 2004-11-10 | B7: 0.55 | D7: 2004 | E7: 0.55 | F7: 0.375 | G7: End Dividend | H7: 3.28
A8: 2005-11-10 | B8: 0.67 | D8: 2005 | E8: 0.67 | F8: 0.2181818182 | G8: CAGR | H8: 0.2148736117
A9: 2006-11-13 | B9: 1 | D9: 2006 | E9: 1 | F9: 0.4925373134
A10: 2007-11-13 | B10: 1.5 | D10: 2007 | E10: 1.5 | F10: 0.5
A11: 2008-02-28 | B11: 0.375 | D11: 2008 | E11: 1.625 | F11: 0.08333333333
A12: 2008-06-05 | B12: 0.375 | D12: 2009 | E12: 2.05 | F12: 0.2615384615
A13: 2008-08-28 | B13: 0.375 | D13: 2010 | E13: 2.26 | F13: 0.1024390244
A14: 2008-11-26 | B14: 0.5 | D14: 2011 | E14: 2.53 | F14: 0.1194690265
A15: 2009-02-26 | B15: 0.5 | D15: 2012 | E15: 2.87 | F15: 0.1343873518
A16: 2009-06-04 | B16: 0.5 | D16: 2013 | E16: 3.12 | F16: 0.08710801394
A17: 2009-08-28 | B17: 0.5 | D17: 2014 | E17: 3.28 | F17: 0.05128205128
A18: 2009-11-27 | B18: 0.55
A19: 2010-02-25 | B19: 0.55 | E19: Average Growth | F19: =AVERAGE(F4:F17) -> 0.2298828662
A20: 2010-05-27 | B20: 0.55
A21: 2010-08-30 | B21: 0.55
A22: 2010-11-29 | B22: 0.61
A23: 2011-02-25 | B23: 0.61
A24: 2011-05-27 | B24: 0.61
A25: 2011-08-30 | B25: 0.61
A26: 2011-11-29 | B26: 0.7
A27: 2012-02-28 | B27: 0.7
A28: 2012-05-31 | B28: 0.7
A29: 2012-08-30 | B29: 0.7
A30: 2012-11-29 | B30: 0.77
A31: 2013-02-27 | B31: 0.77
A32: 2013-05-30 | B32: 0.77
A33: 2013-08-29 | B33: 0.77
A34: 2013-11-27 | B34: 0.81
A35: 2014-02-27 | B35: 0.81
A36: 2014-05-29 | B36: 0.81
A37: 2014-08-28 | B37: 0.81
A38: 2014-11-26 | B38: 0.85

Sheet BP
A1: Historical Dividends for BP
A2: Date | B2: Dividends | D2: Year | E2: Total Dividends | F2: Growth Rate | G2: Start Date | H2: 2000-02-23
A3: 2000-02-23 | B3: 0.333 | D3: 2000 | E3: 1.349 | G3: End Date | H3: 2014-11-05
A4: 2000-05-17 | B4: 0.333 | D4: 2001 | E4: 1.434 | F4: =(E4 - E3) / E3 -> 0.06300963677 | G4: Days in Range | H4: 5369
A5: 2000-08-16 | B5: 0.333 | D5: 2002 | E5: 1.566 | F5: 0.09205020921 | G5: Years in Range | H5: 15
A6: 2000-11-15 | B6: 0.35 | D6: 2003 | E6: 1.658 | F6: 0.05874840358 | G6: Start Dividend | H6: 1.349
A7: 2001-02-21 | B7: 0.35 | D7: 2004 | E7: 1.707 | F7: 0.02955367913 | G7: End Dividend | H7: 2.34
A8: 2001-05-16 | B8: 0.35 | D8: 2005 | E8: 2.092 | F8: 0.2255418864 | G8: CAGR | H8: 0.03740163274
A9: 2001-08-15 | B9: 0.367 | D9: 2006 | E9: 2.306 | F9: 0.1022944551
A10: 2001-11-14 | B10: 0.367 | D10: 2007 | E10: 2.54 | F10: 0.1014744146
A11: 2002-02-20 | B11: 0.383 | D11: 2008 | E11: 3.304 | F11: 0.3007874016
A12: 2002-05-15 | B12: 0.383 | D12: 2009 | E12: 3.36 | F12: 0.01694915254
A13: 2002-08-14 | B13: 0.4 | D13: 2010 | E13: 1.68 | F13: -0.5
A14: 2002-11-13 | B14: 0.4 | D14: 2011 | E14: 1.68 | F14: 0
A15: 2003-02-26 | B15: 0.417 | D15: 2012 | E15: 1.98 | F15: 0.1785714286
A16: 2003-05-14 | B16: 0.375 | D16: 2013 | E16: 2.19 | F16: 0.1060606061
A17: 2003-08-13 | B17: 0.433 | D17: 2014 | E17: 2.34 | F17: 0.06849315068
A18: 2003-11-12 | B18: 0.433
A19: 2004-02-18 | B19: 0.45 | E19: Average Growth | F19: =AVERAGE(F4:F17) -> 0.06025245886
A20: 2004-05-12 | B20: 0.405
A21: 2004-08-11 | B21: 0.426
A22: 2004-11-09 | B22: 0.426
A23: 2005-02-16 | B23: 0.51
A24: 2005-05-11 | B24: 0.51
A25: 2005-08-10 | B25: 0.536
A26: 2005-11-08 | B26: 0.536
A27: 2006-02-22 | B27: 0.563
A28: 2006-05-10 | B28: 0.563
A29: 2006-08-09 | B29: 0.59
A30: 2006-11-08 | B30: 0.59
A31: 2007-02-21 | B31: 0.62
A32: 2007-05-09 | B32: 0.62
A33: 2007-08-08 | B33: 0.65
A34: 2007-11-07 | B34: 0.65
A35: 2008-02-20 | B35: 0.812
A36: 2008-05-14 | B36: 0.812
A37: 2008-08-13 | B37: 0.84
A38: 2008-11-12 | B38: 0.84
A39: 2009-02-18 | B39: 0.84
A40: 2009-05-13 | B40: 0.84
A41: 2009-08-12 | B41: 0.84
A42: 2009-11-10 | B42: 0.84
A43: 2010-02-17 | B43: 0.84
A44: 2010-05-05 | B44: 0.84
A45: 2011-02-09 | B45: 0.42
A46: 2011-05-11 | B46: 0.42
A47: 2011-08-03 | B47: 0.42
A48: 2011-11-02 | B48: 0.42
A49: 2012-02-15 | B49: 0.48
A50: 2012-05-09 | B50: 0.48
A51: 2012-08-08 | B51: 0.48
A52: 2012-11-07 | B52: 0.54
A53: 2013-02-13 | B53: 0.54
A54: 2013-05-08 | B54: 0.54
A55: 2013-08-07 | B55: 0.54
A56: 2013-11-06 | B56: 0.57
A57: 2014-02-12 | B57: 0.57
A58: 2014-05-07 | B58: 0.585
A59: 2014-08-06 | B59: 0.585
A60: 2014-11-05 | B60: 0.6

Sheet KO
A1: Historical Dividends for KO
A2: Date | B2: Dividends | D2: Year | E2: Total Dividends | F2: Growth Rate | G2: Start Date | H2: 2000-03-13
A3: 2000-03-13 | B3: 0.085 | D3: 2000 | E3: 0.34 | G3: End Date | H3: 2014-11-26
A4: 2000-06-13 | B4: 0.085 | D4: 2001 | E4: 0.45 | F4: =(E4 - E3) / E3 -> 0.3235294118 | G4: Days in Range | H4: 5371
A5: 2000-09-13 | B5: 0.085 | D5: 2002 | E5: 0.4 | F5: -0.1111111111 | G5: Years in Range | H5: 15
A6: 2000-11-29 | B6: 0.085 | D6: 2003 | E6: 0.44 | F6: 0.1 | G6: Start Dividend | H6: 0.34
A7: 2001-03-13 | B7: 0.09 | D7: 2004 | E7: 0.5 | F7: 0.1363636364 | G7: End Dividend | H7: 1.22
A8: 2001-06-13 | B8: 0.09 | D8: 2005 | E8: 0.56 | F8: 0.12 | G8: CAGR | H8: 0.0889101874
A9: 2001-09-12 | B9: 0.18 | D9: 2006 | E9: 0.62 | F9: 0.1071428571
A10: 2001-11-28 | B10: 0.09 | D10: 2007 | E10: 0.68 | F10: 0.09677419355
A11: 2002-03-13 | B11: 0.1 | D11: 2008 | E11: 0.76 | F11: 0.1176470588
A12: 2002-06-12 | B12: 0.1 | D12: 2009 | E12: 0.82 | F12: 0.07894736842
A13: 2002-09-11 | B13: 0.1 | D13: 2010 | E13: 0.88 | F13: 0.07317073171
A14: 2002-11-26 | B14: 0.1 | D14: 2011 | E14: 0.94 | F14: 0.06818181818
A15: 2003-03-12 | B15: 0.11 | D15: 2012 | E15: 1.02 | F15: 0.08510638298
A16: 2003-06-11 | B16: 0.11 | D16: 2013 | E16: 1.12 | F16: 0.09803921569
A17: 2003-09-11 | B17: 0.11 | D17: 2014 | E17: 1.22 | F17: 0.08928571429
A18: 2003-11-26 | B18: 0.11
A19: 2004-03-11 | B19: 0.125 | E19: Average Growth | F19: =AVERAGE(F4:F17) -> 0.09879123413
A20: 2004-06-14 | B20: 0.125
A21: 2004-09-13 | B21: 0.125
A22: 2004-11-29 | B22: 0.125
A23: 2005-03-11 | B23: 0.14
A24: 2005-06-13 | B24: 0.14
A25: 2005-09-13 | B25: 0.14
A26: 2005-11-29 | B26: 0.14
A27: 2006-03-13 | B27: 0.155
A28: 2006-06-13 | B28: 0.155
A29: 2006-09-13 | B29: 0.155
A30: 2006-11-29 | B30: 0.155
A31: 2007-03-13 | B31: 0.17
A32: 2007-06-13 | B32: 0.17
A33: 2007-09-12 | B33: 0.17
A34: 2007-11-28 | B34: 0.17
A35: 2008-03-12 | B35: 0.19
A36: 2008-06-11 | B36: 0.19
A37: 2008-09-11 | B37: 0.19
A38: 2008-11-26 | B38: 0.19
A39: 2009-03-11 | B39: 0.205
A40: 2009-06-11 | B40: 0.205
A41: 2009-09-11 | B41: 0.205
A42: 2009-11-27 | B42: 0.205
A43: 2010-03-11 | B43: 0.22
A44: 2010-06-11 | B44: 0.22
A45: 2010-09-13 | B45: 0.22
A46: 2010-11-29 | B46: 0.22
A47: 2011-03-11 | B47: 0.235
A48: 2011-06-13 | B48: 0.235
A49: 2011-09-13 | B49: 0.235
A50: 2011-11-29 | B50: 0.235
A51: 2012-03-13 | B51: 0.255
A52: 2012-06-13 | B52: 0.255
A53: 2012-09-12 | B53: 0.255
A54: 2012-11-28 | B54: 0.255
A55: 2013-03-13 | B55: 0.28
A56: 2013-06-12 | B56: 0.28
A57: 2013-09-12 | B57: 0.28
A58: 2013-11-27 | B58: 0.28
A59: 2014-03-12 | B59: 0.305
A60: 2014-06-12 | B60: 0.305
A61: 2014-09-11 | B61: 0.305
A62: 2014-11-26 | B62: 0.305

Sheet KKR
A1: Historical Dividends for KKR
A2: Date | B2: Dividends | D2: Year | E2: Total Dividends | F2: Growth Rate | G2: Start Date | H2: 2010-08-20
A3: 2010-08-20 | B3: 0.08 | D3: 2010 | E3: 0.23 | G3: End Date | H3: 2014-10-30
A4: 2010-11-09 | B4: 0.15 | D4: 2011 | E4: 0.71 | F4: =(E4 - E3) / E3 -> 2.086956522 | G4: Days in Range | H4: 1532
A5: 2011-03-03 | B5: 0.29 | D5: 2012 | E5: 0.84 | F5: 0.1830985915 | G5: Years in Range | H5: 4
A6: 2011-05-12 | B6: 0.21 | D6: 2013 | E6: 1.62 | F6: 0.9285714286 | G6: Start Dividend | H6: 0.23
A7: 2011-08-11 | B7: 0.11 | D7: 2014 | E7: 2.03 | F7: 0.2530864198 | G7: End Dividend | H7: 2.03
A8: 2011-11-09 | B8: 0.1 | G8: CAGR | H8: 0.7236220864
A9: 2012-02-16 | B9: 0.32 | E9: Average Growth | F9: =AVERAGE(F4:F7) -> 0.8629282404
A10: 2012-05-03 | B10: 0.15
A11: 2012-08-02 | B11: 0.13
A12: 2012-11-01 | B12: 0.24
A13: 2013-02-14 | B13: 0.7
A14: 2013-05-02 | B14: 0.27
A15: 2013-08-01 | B15: 0.42
A16: 2013-10-31 | B16: 0.23
A17: 2014-02-13 | B17: 0.48
A18: 2014-05-07 | B18: 0.43
A19: 2014-07-31 | B19: 0.67
A20: 2014-10-30 | B20: 0.45

Sheet Collated Dividends
B1: XOM | C1: MCD | D1: BP | E1: KO | F1: KKR
A2: 2000-01-01
A3: 2000-01-02
A4: 2000-01-03
A5: 2000-01-04
A6: 2000-01-05
A7: 2000-01-06
A8: 2000-01-07
A9: 2000-01-08
A10: 2000-01-09
A11: 2000-01-10
A12: 2000-01-11
A13: 2000-01-12
A14: 2000-01-13
A15: 2000-01-14
A16: 2000-01-15
A17: 2000-01-16
A18: 2000-01-17
A19: 2000-01-18
A20: 2000-01-19
A21: 2000-01-20
A22: 2000-01-21
A23: 2000-01-22
A24: 2000-01-23
A25: 2000-01-24
A26: 2000-01-25
A27: 2000-01-26
A28: 2000-01-27
A29: 2000-01-28
A30: 2000-01-29
A31: 2000-01-30
A32: 2000-01-31
A33: 2000-02-01
A34: 2000-02-02
A35: 2000-02-03
A36: 2000-02-04
A37: 2000-02-05
A38: 2000-02-06
A39: 2000-02-07
A40: 2000-02-08
A41: 2000-02-09 | B41: =VLOOKUP(A41,XOM!A$2:B$5479,2,0) -> 0.22
A42: 2000-02-10
A43: 2000-02-11
A44: 2000-02-12
A45: 2000-02-13
A46: 2000-02-14
A47: 2000-02-15
A48: 2000-02-16
A49: 2000-02-17
A50: 2000-02-18
A51: 2000-02-19
A52: 2000-02-20
A53: 2000-02-21
A54: 2000-02-22
A55: 2000-02-23 | D55: =VLOOKUP(A55,BP!A$2:B$5479,2,0) -> 0.333
A56: 2000-02-24
A57: 2000-02-25
A58: 2000-02-26
A59: 2000-02-27
A60: 2000-02-28
A61: 2000-02-29
A62: 2000-03-01
A63: 2000-03-02
A64: 2000-03-03
A65: 2000-03-04
A66: 2000-03-05
A67: 2000-03-06
A68: 2000-03-07
A69: 2000-03-08
A70: 2000-03-09
A71: 2000-03-10
A72: 2000-03-11
A73: 2000-03-12
A74: 2000-03-13 | E74: =VLOOKUP(A74,KO!A$2:B$5479,2,0) -> 0.085
A75: 2000-03-14
A76: 2000-03-15
A77: 2000-03-16
A78: 2000-03-17
A79: 2000-03-18
A80: 2000-03-19
A81: 2000-03-20
A82: 2000-03-21
A83: 2000-03-22
A84: 2000-03-23
A85: 2000-03-24
A86: 2000-03-25
A87: 2000-03-26
A88: 2000-03-27
A89: 2000-03-28
A90: 2000-03-29
A91: 2000-03-30
A92: 2000-03-31
A93: 2000-04-01
A94: 2000-04-02
A95: 2000-04-03
A96: 2000-04-04
A97: 2000-04-05
A98: 2000-04-06
A99: 2000-04-07
A100: 2000-04-08
A101: 2000-04-09
A102: 2000-04-10
A103: 2000-04-11
A104: 2000-04-12
A105: 2000-04-13
A106: 2000-04-14
A107: 2000-04-15
A108: 2000-04-16
A109: 2000-04-17
A110: 2000-04-18
A111: 2000-04-19
A112: 2000-04-20
A113: 2000-04-21
A114: 2000-04-22
A115: 2000-04-23
A116: 2000-04-24
A117: 2000-04-25
A118: 2000-04-26
A119: 2000-04-27
A120: 2000-04-28
A121: 2000-04-29
A122: 2000-04-30
A123: 2000-05-01
A124: 2000-05-02
A125: 2000-05-03
A126: 2000-05-04
A127: 2000-05-05
A128: 2000-05-06
A129: 2000-05-07
A130: 2000-05-08
A131: 2000-05-09
A132: 2000-05-10
A133: 2000-05-11 | B133: =VLOOKUP(A133,XOM!A$2:B$5479,2,0) -> 0.22
A134: 2000-05-12
A135: 2000-05-13
A136: 2000-05-14
A137: 2000-05-15
A138: 2000-05-16
A139: 2000-05-17 | D139: =VLOOKUP(A139,BP!A$2:B$5479,2,0) -> 0.333
A140: 2000-05-18
A141: 2000-05-19
A142: 2000-05-20
A143: 2000-05-21
A144: 2000-05-22
A145: 2000-05-23
A146: 2000-05-24
A147: 2000-05-25
A148: 2000-05-26
A149: 2000-05-27
A150: 2000-05-28
A151: 2000-05-29
A152: 2000-05-30
A153: 2000-05-31
A154: 2000-06-01
A155: 2000-06-02
A156: 2000-06-03
A157: 2000-06-04
A158: 2000-06-05
A159: 2000-06-06
A160: 2000-06-07
A161: 2000-06-08
A162: 2000-06-09
A163: 2000-06-10
A164: 2000-06-11
A165: 2000-06-12
A166: 2000-06-13 | E166: =VLOOKUP(A166,KO!A$2:B$5479,2,0) -> 0.085
A167: 2000-06-14
A168: 2000-06-15
A169: 2000-06-16
A170: 2000-06-17
A171: 2000-06-18
A172: 2000-06-19
A173: 2000-06-20
A174: 2000-06-21
A175: 2000-06-22
A176: 2000-06-23
A177: 2000-06-24
A178: 2000-06-25
A179: 2000-06-26
A180: 2000-06-27
A181: 2000-06-28
A182: 2000-06-29
A183: 2000-06-30
A184: 2000-07-01
A185: 2000-07-02
A186: 2000-07-03
A187: 2000-07-04
A188: 2000-07-05
A189: 2000-07-06
A190: 2000-07-07
A191: 2000-07-08
A192: 2000-07-09
A193: 2000-07-10
A194: 2000-07-11
A195: 2000-07-12
A196: 2000-07-13
A197: 2000-07-14
A198: 2000-07-15
A199: 2000-07-16
A200: 2000-07-17
... 5280 more rows
